fUST/lending_fUST_20260114
["ID","MTS","AMOUNT","RATE_DAILY","PERIOD"]
[401873937,1768392644909,-1500.0,0.00014795,2]
[401873938,1768392644923,-1500.0,0.00014795,2]
[401873941,1768392644933,-559.25711422,0.00014795,2]
[401873943,1768392644943,-1479.00156205,0.00014795,2]
[401873945,1768392644952,-1082.85856265,0.00014795,2]
[401873946,1768392644961,-949.7291255,0.00014795,2]
[401873949,1768392644971,-1051.15225971,0.00014795,2]
[401873951,1768392644980,-522.48598281,0.00014795,2]
[401873952,1768392644990,-1500.0,0.00014795,2]
[401873954,1768392645000,-1500.0,0.00014795,2]
[401873956,1768392645009,-1500.0,0.00014795,2]
[401873959,1768392645018,-1500.0,0.00014795,2]
[401873960,1768392645028,-1500.0,0.00014795,2]
[401873962,1768392645037,-1292.00440399,0.00014795,2]
[401873964,1768392645046,-1500.0,0.00014795,2]
[401873966,1768392645055,-827.64226173,0.00014795,2]
[401873968,1768392645064,-1500.0,0.00014795,2]
[401873970,1768392645073,-403.91919138,0.000149,2]
[401873972,1768392645085,-403.91919137,0.000149,2]
[401873974,1768392645094,-403.91919137,0.000149,2]
[401873976,1768392645103,-908.0,0.00014904,2]
[401873978,1768392645112,-452.0,0.00014904,2]
[401873980,1768392645121,-2000.0,0.00014916,2]
[401873982,1768392645131,-2000.0,0.00014916,2]
[401873984,1768392645140,-2000.0,0.00014916,2]
[401873986,1768392645150,-2000.0,0.00014916,2]
[401873989,1768392645165,-878.64680697,0.00014916,2]
[401873990,1768392645175,-1056.99110983,0.00014916,2]
[401873993,1768392645186,-2000.0,0.00014916,2]
[401873994,1768392645196,-2000.0,0.00014916,2]
[401873996,1768392645207,-1031.81939639,0.00014916,2]
[401873998,1768392645216,-2000.0,0.00014916,2]
[401874000,1768392645224,-503.99870158,0.00014916,2]
[401874002,1768392645234,-2000.0,0.00014916,2]
[401874004,1768392645243,-2000.0,0.00014916,2]
[401874006,1768392645252,-2000.0,0.00014916,2]
[401874008,1768392645261,-1288.90612665,0.00014916,2]
[401874010,1768392645270,-2000.0,0.00014916,2]
[401874012,1768392645280,-908.0,0.00015041,2]
[401874014,1768392645290,-452.0,0.00015041,2]
[401874016,1768392645299,-800.0,0.00015068,2]
[401874018,1768392645309,-918.0018012,0.00015178,2]
[401874020,1768392645318,-471.17015784,0.00015178,2]
[401874022,1768392645328,-6923.60256273,0.00015207,2]
[401874024,1768392645338,-152653.963458,0.00015207,7]
[401874026,1768392645347,-12705.37423421,0.00015242,2]
[401874028,1768392645356,-1200.0,0.00015316,2]
[401874030,1768392645366,-2000.0,0.00015342,2]
[401874032,1768392645375,-2094.03075988,0.00015342,2]
[401874034,1768392645385,-646.70021057,0.00015342,2]
[401874036,1768392645399,-503.42728186,0.00015342,2]
[401874037,1768392645411,-2000.0,0.00015342,2]
[401874039,1768392645422,-2000.0,0.00015342,2]
[401874041,1768392645432,-2000.0,0.00015342,2]
[401874043,1768392645441,-735.30085754,0.00015342,2]
[401874045,1768392645452,-2000.0,0.00015342,2]
[401874047,1768392645461,-2000.0,0.00015342,2]
[401874050,1768392645470,-749.49335299,0.00015342,2]
[401874051,1768392645480,-2000.0,0.00015342,2]
[401874053,1768392645489,-2000.0,0.00015342,2]
[401874076,1768392645665,-655.35549971,0.00015342,2]
[401874079,1768392645700,-2000.0,0.00015342,2]
[401874081,1768392645710,-1873.84265648,0.00015342,2]
[401874083,1768392645719,-398.3080868,0.000154,2]
[401874085,1768392645728,-16283.089435,0.000154,7]
[401874086,1768392645738,-6036.29581733,0.00015405,2]
[401874088,1768392645747,-19313.50358939,0.00015443,2]
[401874091,1768392645756,-2500.0,0.00015464,2]
[401874093,1768392645766,-1005.48440654,0.00015464,2]
[401874094,1768392645775,-2500.0,0.00015464,2]
[401874097,1768392645785,-2500.0,0.00015464,2]
[401874099,1768392645794,-2500.0,0.00015464,2]
[401874101,1768392645803,-2500.0,0.00015464,2]
[401874102,1768392645813,-2500.0,0.00015464,2]
[401874105,1768392645823,-2500.0,0.00015464,2]
[401874107,1768392645832,-2500.0,0.00015464,2]
[401874109,1768392645843,-2500.0,0.00015464,2]
[401874111,1768392645852,-2500.0,0.00015464,2]
[401874113,1768392645861,-1613.0,0.00015469,2]
[401874115,1768392645871,-353.0,0.00015469,2]
[401874117,1768392645881,-1248.0,0.00015469,2]
[401874119,1768392645890,-2000.0,0.00015558,7]
[401874121,1768392645900,-8762.68449346,0.00015625,2]
[401874123,1768392645912,-1047.0558644,0.00015702,2]
[401874125,1768392645925,-40707.723589,0.00015843,7]
[401874127,1768392645935,-1500.0,0.00015864,2]
[401874129,1768392645944,-1711.66599686,0.0001589,2]
[401874131,1768392645954,-2500.0,0.0001589,2]
[401874133,1768392645963,-559.4878042,0.0001589,2]
[401874135,1768392645973,-2500.0,0.0001589,2]
[401874137,1768392645982,-2500.0,0.0001589,2]
[401874139,1768392645992,-380.12579905,0.0001589,2]
[401874142,1768392646002,-2500.0,0.0001589,2]
[401874145,1768392646012,-2500.0,0.0001589,2]
[401874148,1768392646022,-1000.0,0.00015943,2]
[401874151,1768392646031,-492.0,0.00015943,2]
[401874154,1768392646041,-398.3080868,0.00016,9]
[401874157,1768392646050,-3000.0,0.00016,2]
[401874160,1768392646060,-168.28,0.00016005,2]
[401874163,1768392646070,-3000.0,0.0001601,2]
[401874166,1768392646080,-1671.14126243,0.00016012,2]
[401874169,1768392646090,-3000.0,0.00016012,2]
[401874172,1768392646099,-3000.0,0.00016012,2]
[401874176,1768392646109,-3000.0,0.00016012,2]
[401874179,1768392646119,-3000.0,0.00016012,2]
[401874182,1768392646130,-3000.0,0.00016012,2]
[401874185,1768392646141,-1185.37019291,0.00016012,2]
[401874188,1768392646151,-3000.0,0.00016012,2]
[401874191,1768392646163,-3000.0,0.00016012,2]
[401874194,1768392646172,-3000.0,0.00016012,2]
[401874197,1768392646183,-3000.0,0.00016012,2]
[401874200,1768392646195,-3000.0,0.0001602,2]
[401874203,1768392646205,-3000.0,0.0001603,2]
[401874206,1768392646214,-3000.0,0.0001604,2]
[401874209,1768392646224,-101769.308971,0.0001604,7]
[401874213,1768392646235,-10818.12900427,0.00016043,2]
[401874216,1768392646244,-3000.0,0.0001605,2]
[401874218,1768392646254,-3000.0,0.0001606,2]
[401874222,1768392646263,-3000.0,0.0001607,2]
[401874225,1768392646273,-3000.0,0.0001608,2]
[401874229,1768392646282,-3000.0,0.0001609,2]
[401874231,1768392646292,-3000.0,0.000161,2]
[401874235,1768392646302,-3000.0,0.0001611,2]
[401874238,1768392646311,-3000.0,0.0001612,2]
[401874241,1768392646323,-3000.0,0.0001613,2]
[401874243,1768392646333,-3000.0,0.0001614,2]
[401874244,1768392646342,-3000.0,0.0001615,2]
[401874246,1768392646351,-3000.0,0.0001616,2]
[401874249,1768392646361,-1600.0,0.00016164,2]
[401874251,1768392646371,-3000.0,0.0001617,2]
[401874253,1768392646380,-3000.0,0.0001618,2]
[401874254,1768392646389,-3000.0,0.0001619,2]
[401874257,1768392646399,-3000.0,0.000162,2]
[401874259,1768392646408,-3000.0,0.0001621,2]
[401874261,1768392646418,-3000.0,0.0001622,2]
[401874263,1768392646428,-3000.0,0.0001623,2]
[401874264,1768392646438,-3000.0,0.0001624,2]
[401874267,1768392646448,-3000.0,0.0001625,2]
[401874269,1768392646458,-3000.0,0.0001626,2]
[401874271,1768392646467,-3000.0,0.0001627,2]
[401874273,1768392646477,-3000.0,0.0001628,2]
[401874275,1768392646487,-3000.0,0.0001629,2]
[401874276,1768392646496,-3000.0,0.000163,2]
[401874278,1768392646506,-3000.0,0.0001631,2]
[401874281,1768392646516,-3000.0,0.0001632,2]
[401874282,1768392646526,-3000.0,0.0001633,2]
[401874285,1768392646536,-3000.0,0.0001634,2]
[401874287,1768392646545,-3000.0,0.0001635,2]
[401874289,1768392646555,-3000.0,0.0001636,2]
[401874291,1768392646564,-3000.0,0.0001637,2]
[401874293,1768392646573,-3000.0,0.0001638,2]
[401874295,1768392646582,-3000.0,0.0001639,2]
[401874296,1768392646592,-3000.0,0.000164,2]
[401874298,1768392646602,-3000.0,0.0001641,2]
[401874300,1768392646611,-6872.97859589,0.00016412,2]
[401874301,1768392646620,-1800.0,0.00016412,2]
[401874302,1768392646630,-3000.0,0.0001642,2]
[401874303,1768392646639,-3187.243627,0.0001643,2]
[401874304,1768392646648,-500.0,0.00016438,2]
[401874306,1768392646659,-595.30780858,0.00016438,2]
[401874308,1768392646669,-9431.71221458,0.00016438,2]
[401874310,1768392646683,-200.0,0.00016438,2]
[401874312,1768392646692,-164.26686219,0.00016438,2]
[401874314,1768392646702,-3000.0,0.00016438,2]
[401874316,1768392646712,-2544.67516775,0.00016438,2]
[401874318,1768392646721,-3000.0,0.00016438,2]
[401874320,1768392646731,-3000.0,0.00016438,2]
[401874322,1768392646740,-2819.68437302,0.00016438,2]
[401874324,1768392646750,-260.29560408,0.00016438,2]
[401874326,1768392646759,-13089.93609516,0.0001646,2]
[401874328,1768392646769,-200.0,0.00016473,2]
[401874330,1768392646779,-3500.0,0.0001656,2]
[401874332,1768392646789,-3500.0,0.0001656,2]
[401874335,1768392646798,-3500.0,0.0001656,2]
[401874337,1768392646810,-3500.0,0.0001656,2]
[401874339,1768392646820,-3500.0,0.0001656,2]
[401874340,1768392646829,-3500.0,0.0001656,2]
[401874343,1768392646839,-416.13825137,0.0001656,2]
[401874345,1768392646848,-3500.0,0.0001656,2]
[401874347,1768392646858,-398.3080868,0.00016599,17]
[401874349,1768392646867,-2000.0,0.00016844,7]
[401874351,1768392646876,-2100.0,0.0001696,2]
[401874352,1768392646885,-270.0,0.00016986,2]
[401874355,1768392646895,-3587.94374426,0.00016986,2]
[401874357,1768392646905,-3500.0,0.00016986,2]
[401874359,1768392646915,-3500.0,0.00016986,2]
[401874361,1768392646924,-2258.0,0.00017016,2]
[401874363,1768392646933,-1077.0,0.00017093,2]
[401874365,1768392646943,-4000.0,0.00017108,2]
[401874367,1768392646952,-3392.75982988,0.00017108,2]
[401874369,1768392646962,-1692.29139729,0.00017108,2]
[401874371,1768392646971,-4000.0,0.00017108,2]
[401874373,1768392646981,-4000.0,0.00017108,2]
[401874375,1768392646990,-4000.0,0.00017108,2]
[401874377,1768392646999,-4000.0,0.00017108,2]
[401874379,1768392647009,-4000.0,0.00017108,2]
[401874381,1768392647018,-12705.37423421,0.00017135,2]
[401874383,1768392647027,-398.3080868,0.00017199,25]
[401874385,1768392647037,-2400.0,0.0001726,2]
[401874387,1768392647047,-5000.0,0.00017412,2]
[401874389,1768392647058,-1041.66666667,0.00017429,2]
[401874391,1768392647068,-160.35823449,0.00017467,2]
[401874393,1768392647078,-63605.818107,0.00017488,7]
[401874395,1768392647088,-1145.51309932,0.00017506,11]
[401874397,1768392647097,-2400.0,0.00017508,2]
[401874399,1768392647107,-174.48080933,0.00017534,2]
[401874401,1768392647116,-400.0,0.00017534,2]
[401874403,1768392647126,-4000.0,0.00017534,2]
[401874405,1768392647135,-4000.0,0.00017534,2]
[401874407,1768392647144,-1000.0,0.00017537,2]
[401874409,1768392647155,-791.0,0.00017537,2]
[401874411,1768392647169,-168.28,0.00017641,2]
[401874414,1768392647179,-3199.34641428,0.00017656,2]
[401874416,1768392647188,-4500.0,0.00017656,2]
[401874418,1768392647197,-4500.0,0.00017656,2]
[401874420,1768392647207,-4500.0,0.00017656,2]
[401874422,1768392647216,-4500.0,0.00017656,2]
[401874424,1768392647225,-1169.43901738,0.00017702,2]
[401874425,1768392647236,-6784.620598,0.0001771,7]
[401874428,1768392647246,-398.3080868,0.00017798,32]
[401874430,1768392647256,-400.30202268,0.00017842,2]
[401874432,1768392647265,-2700.0,0.00018056,2]
[401874434,1768392647274,-4500.0,0.00018082,2]
[401874436,1768392647283,-4500.0,0.00018082,2]
[401874438,1768392647292,-4500.0,0.00018082,2]
[401874440,1768392647301,-2000.0,0.00018131,7]
[401874442,1768392647311,-1417.48910491,0.00018204,2]
[401874444,1768392647321,-5000.0,0.00018204,2]
[401874446,1768392647330,-5000.0,0.00018204,2]
[401874447,1768392647339,-5000.0,0.00018204,2]
[401874450,1768392647348,-5000.0,0.00018204,2]
[401874452,1768392647358,-3200.0,0.00018356,2]
[401874453,1768392647367,-19313.50358939,0.00018362,2]
[401874456,1768392647377,-500.0,0.00018378,2]
[401874458,1768392647386,-461.67526834,0.00018378,2]
[401874460,1768392647395,-250.0,0.00018378,2]
[401874462,1768392647405,-168.3888056,0.00018378,2]
[401874464,1768392647414,-500.0,0.00018378,2]
[401874466,1768392647423,-174.61919141,0.00018378,2]
[401874468,1768392647432,-500.0,0.00018378,2]
[401874470,1768392647441,-181.08010149,0.00018378,2]
[401874472,1768392647450,-500.0,0.00018378,2]
[401874474,1768392647459,-30000.0,0.00018378,2]
[401874476,1768392647468,-187.78006525,0.00018378,2]
[401874478,1768392647477,-500.0,0.00018378,2]
[401874479,1768392647487,-194.72792766,0.00018378,2]
[401874482,1768392647497,-500.0,0.00018378,2]
[401874484,1768392647506,-201.93286099,0.00018378,2]
[401874485,1768392647516,-500.0,0.00018378,2]
[401874487,1768392647525,-209.40437684,0.00018378,2]
[401874489,1768392647535,-500.0,0.00018378,2]
[401874492,1768392647544,-217.15233878,0.00018378,2]
[401874494,1768392647554,-500.0,0.00018378,2]
[401874496,1768392647563,-225.18697532,0.00018378,2]
[401874498,1768392647572,-500.0,0.00018378,2]
[401874500,1768392647582,-335.36136099,0.00018378,2]
[401874502,1768392647591,-160.0,0.00018378,2]
[401874504,1768392647600,-233.51889341,0.00018378,2]
[401874506,1768392647609,-500.0,0.00018378,2]
[401874508,1768392647618,-160.0,0.00018378,2]
[401874510,1768392647628,-242.15909246,0.00018378,2]
[401874512,1768392647638,-500.0,0.00018378,2]
[401874514,1768392647647,-164.08273023,0.00018378,2]
[401874516,1768392647657,-251.11897888,0.00018378,2]
[401874518,1768392647669,-500.0,0.00018378,2]
[401874520,1768392647678,-260.4103811,0.00018378,2]
[401874522,1768392647688,-500.0,0.00018378,2]
[401874524,1768392647697,-500.0,0.00018378,2]
[401874526,1768392647706,-270.0455652,0.00018378,2]
[401874528,1768392647715,-500.0,0.00018378,2]
[401874530,1768392647724,-500.0,0.00018378,2]
[401874532,1768392647733,-280.03725112,0.00018378,2]
[401874534,1768392647742,-290.39862941,0.00018378,2]
[401874536,1768392647751,-301.1433787,0.00018378,2]
[401874538,1768392647760,-168.3888056,0.00018378,2]
[401874540,1768392647770,-2230.315306,0.00018378,2]
[401874542,1768392647779,-398.3080868,0.00018398,40]
[401874544,1768392647789,-1077.0,0.00018493,2]
[401874546,1768392647799,-163.33303318,0.00018495,2]
[401874548,1768392647809,-286.1857767,0.00018552,2]
[401874550,1768392647819,-381.5810356,0.00018552,2]
[401874553,1768392647828,-190.7905178,0.00018552,2]
[401874555,1768392647838,-1145.51309932,0.000186,12]
[401874556,1768392647847,-3000.0,0.00018604,2]
[401874559,1768392647858,-600.0,0.0001863,2]
[401874561,1768392647867,-5000.0,0.0001863,2]
[401874563,1768392647877,-5000.0,0.0001863,2]
[401874565,1768392647887,-5000.0,0.0001863,2]
[401874567,1768392647896,-3162.0,0.00018717,2]
[401874569,1768392647906,-4088.14205975,0.00018752,2]
[401874571,1768392647915,-5500.0,0.00018752,2]
[401874573,1768392647924,-5500.0,0.00018752,2]
[401874575,1768392647933,-5000.0,0.00018863,2]
[401874577,1768392647942,-13783.2104345,0.00018897,2]
[401874579,1768392647951,-1288.4937816,0.00018897,2]
[401874581,1768392647963,-39103.1577225,0.00018897,2]
[401874583,1768392647973,-303.10001603,0.000189,2]
[401874585,1768392647987,-303.10001603,0.000189,2]
[401874592,1768392648057,-478.75725327,0.00018926,2]
[401874594,1768392648066,-31110.0,0.00018926,2]
[401874596,1768392648075,-347.76973134,0.00018926,2]
[401874598,1768392648084,-174.61919141,0.00018926,2]
[401874600,1768392648093,-2312.83697232,0.00018926,2]
[401874602,1768392648102,-398.3080868,0.00018997,48]
[401874605,1768392648111,-12705.37423421,0.00019028,2]
[401874606,1768392648120,-303.10001603,0.00019089,2]
[401874608,1768392648130,-303.10001603,0.00019089,2]
[401874610,1768392648139,-3300.0,0.00019152,2]
[401874612,1768392648148,-507.1352,0.00019178,2]
[401874614,1768392648159,-507.1352,0.00019178,2]
[401874617,1768392648169,-507.1352,0.00019178,2]
[401874619,1768392648178,-507.1352,0.00019178,2]
[401874621,1768392648187,-507.1352,0.00019178,2]
[401874623,1768392648196,-200.0,0.00019178,2]
[401874624,1768392648206,-507.1352,0.00019178,2]
[401874626,1768392648215,-5500.0,0.00019178,2]
[401874628,1768392648224,-5500.0,0.00019178,2]
[401874630,1768392648233,-5500.0,0.00019178,2]
[401874632,1768392648243,-40340.44,0.000192,2]
[401874634,1768392648252,-374.32,0.000192,2]
[401874636,1768392648261,-377.31,0.000192,2]
[401874639,1768392648271,-5432.92,0.000192,2]
[401874640,1768392648279,-167.77,0.000192,2]
[401874642,1768392648289,-303.10001603,0.00019278,2]
[401874645,1768392648298,-303.10001603,0.00019278,2]
[401874646,1768392648308,-1000.0,0.00019291,2]
[401874649,1768392648317,-1000.0,0.00019291,2]
[401874651,1768392648326,-6000.0,0.000193,2]
[401874653,1768392648335,-4040.44472477,0.000193,2]
[401874654,1768392648344,-2000.0,0.00019417,7]
[401874657,1768392648353,-307.61092211,0.00019452,2]
[401874659,1768392648362,-303.10001603,0.00019467,2]
[401874660,1768392648371,-303.10001603,0.00019467,2]
[401874663,1768392648380,-496.47127164,0.00019474,2]
[401874665,1768392648389,-32261.07,0.00019474,2]
[401874667,1768392648399,-360.6372114,0.00019474,2]
[401874669,1768392648416,-181.08010149,0.00019474,2]
[401874671,1768392648434,-2398.4119403,0.00019474,2]
[401874673,1768392648443,-168.28,0.00019593,2]
[401874675,1768392648452,-398.3080868,0.00019596,56]
[401874677,1768392648461,-303.10001603,0.00019656,2]
[401874679,1768392648469,-303.10001603,0.00019656,2]
[401874681,1768392648479,-1145.51309932,0.00019694,14]
[401874683,1768392648488,-1056.20051056,0.000197,2]
[401874685,1768392648497,-1291.82217036,0.00019702,2]
[401874686,1768392648506,-800.0,0.00019726,2]
[401874688,1768392648515,-250.0,0.00019726,2]
[401874690,1768392648524,-6000.0,0.00019726,2]
[401874692,1768392648534,-6000.0,0.00019726,2]
[401874694,1768392648543,-6000.0,0.00019726,2]
[401874697,1768392648553,-250.0,0.00019726,2]
[401874698,1768392648562,-180.11166923,0.0001973,2]
[401874700,1768392648573,-454.65002405,0.00019845,4]
[401874702,1768392648583,-454.65002405,0.00019845,4]
[401874704,1768392648593,-6500.0,0.00019848,2]
[401874706,1768392648602,-1077.0,0.00019893,2]
[401874708,1768392648611,-500.0,0.0002,2]
[401874710,1768392648620,-500.0,0.0002,2]
[401874712,1768392648628,-500.0,0.0002,2]
[401874714,1768392648637,-9661.0,0.0002,2]
[401874716,1768392648647,-507.1352,0.0002,4]
[401874718,1768392648656,-151.55000802,0.0002,2]
[401874720,1768392648665,-572.0,0.0002,30]
[401874722,1768392648673,-507.1352,0.0002,4]
[401874724,1768392648682,-300.0,0.0002,2]
[401874726,1768392648692,-200.0048,0.0002,4]
[401874728,1768392648701,-500.4,0.0002,30]
[401874730,1768392648710,-507.1352,0.0002,4]
[401874732,1768392648718,-507.1352,0.0002,4]
[401874734,1768392648727,-507.1352,0.0002,4]
[401874736,1768392648736,-499.0,0.0002,30]
[401874738,1768392648745,-514.84070869,0.00020022,2]
[401874740,1768392648754,-373.98078822,0.00020022,2]
[401874742,1768392648763,-187.78006525,0.00020022,2]
[401874744,1768392648772,-2487.15318209,0.00020022,2]
[401874746,1768392648782,-454.65002405,0.00020034,4]
[401874748,1768392648792,-454.65002405,0.00020034,4]
[401874750,1768392648801,-398.3080868,0.00020196,63]
[401874752,1768392648810,-454.65002405,0.00020223,4]
[401874755,1768392648819,-454.65002405,0.00020223,4]
[401874757,1768392648828,-200.91058964,0.00020274,2]
[401874759,1768392648837,-6500.0,0.00020274,2]
[401874760,1768392648847,-5446.58201638,0.00020274,2]
[401874762,1768392648856,-350.0,0.00020274,2]
[401874764,1768392648864,-3073.24025849,0.00020396,2]
[401874767,1768392648874,-506.6495,0.00020411,5]
[401874768,1768392648884,-507.1352,0.00020411,5]
[401874770,1768392648894,-507.1295,0.00020411,5]
[401874772,1768392648903,-507.1352,0.00020411,5]
[401874774,1768392648912,-507.1352,0.00020411,5]
[401874776,1768392648922,-454.65002405,0.00020412,4]
[401874779,1768392648932,-454.65002405,0.00020412,4]
[401874781,1768392648941,-294.66,0.00020514,2]
[401874783,1768392648950,-533.88981491,0.0002057,2]
[401874785,1768392648960,-258.85518867,0.0002057,2]
[401874787,1768392648969,-194.72792766,0.0002057,2]
[401874789,1768392648978,-2579.17784983,0.0002057,2]
[401874791,1768392648987,-4427.0,0.00020589,2]
[401874793,1768392648997,-5432.92,0.000206,2]
[401874795,1768392649006,-454.65002405,0.00020601,4]
[401874797,1768392649015,-454.65002405,0.00020601,4]
[401874799,1768392649024,-40340.44,0.000207,2]
[401874801,1768392649033,-374.32,0.000207,2]
[401874803,1768392649042,-377.31,0.000207,2]
[401874805,1768392649052,-167.77,0.000207,2]
[401874807,1768392649061,-2000.0,0.00020704,7]
[401874809,1768392649070,-1145.51309932,0.00020788,15]
[401874811,1768392649079,-398.3080868,0.00020796,71]
[401874813,1768392649088,-1000.0,0.00020822,2]
[401874815,1768392649098,-7000.0,0.00020822,2]
[401874817,1768392649107,-450.0,0.00020822,2]
[401874819,1768392649118,-12705.37423421,0.00020921,2]
[401874821,1768392649127,-4183.87260271,0.00020944,2]
[401874823,1768392649136,-3000.0,0.00021,2]
[401874825,1768392649146,-4000.0,0.00021,2]
[401874827,1768392649156,-3000.0,0.0002101,2]
[401874829,1768392649165,-3000.0,0.0002102,2]
[401874831,1768392649174,-3000.0,0.0002103,2]
[401874833,1768392649183,-3000.0,0.0002104,2]
[401874835,1768392649193,-13783.2104345,0.00021049,2]
[401874837,1768392649203,-3000.0,0.0002105,2]
[401874839,1768392649212,-39103.1577225,0.00021054,2]
[401874841,1768392649221,-3000.0,0.0002106,2]
[401874843,1768392649234,-3000.0,0.0002107,2]
[401874845,1768392649243,-3000.0,0.0002108,2]
[401874847,1768392649254,-3000.0,0.0002109,2]
[401874849,1768392649263,-3000.0,0.000211,2]
[401874851,1768392649272,-3000.0,0.0002111,2]
[401874853,1768392649283,-553.64373807,0.00021118,2]
[401874855,1768392649293,-201.93286099,0.00021118,2]
[401874857,1768392649302,-2674.60743027,0.00021118,2]
[401874859,1768392649311,-3000.0,0.0002112,2]
[401874861,1768392649320,-3000.0,0.0002113,2]
[401874863,1768392649328,-3000.0,0.0002114,2]
[401874865,1768392649337,-3000.0,0.0002115,2]
[401874867,1768392649346,-3000.0,0.0002116,2]
[401874869,1768392649355,-3000.0,0.0002117,2]
[401874871,1768392649363,-3000.0,0.0002118,2]
[401874873,1768392649372,-3000.0,0.0002119,2]
[401874875,1768392649380,-3000.0,0.000212,2]
[401874877,1768392649389,-3000.0,0.0002121,2]
[401874879,1768392649398,-3000.0,0.0002122,2]
[401874881,1768392649407,-1000.0,0.0002122,10]
[401874883,1768392649417,-1000.0,0.0002122,10]
[401874885,1768392649426,-579.0,0.0002122,10]
[401874887,1768392649435,-3000.0,0.0002123,2]
[401874889,1768392649444,-3000.0,0.0002124,2]
[401874891,1768392649453,-1288.4937816,0.00021245,2]
[401874893,1768392649463,-3000.0,0.0002125,2]
[401874895,1768392649472,-3000.0,0.0002126,2]
[401874897,1768392649481,-3000.0,0.0002127,2]
[401874899,1768392649490,-3000.0,0.0002128,2]
[401874901,1768392649500,-19313.50358939,0.0002128,2]
[401874903,1768392649510,-3000.0,0.0002129,2]
[401874905,1768392649519,-1077.0,0.00021293,2]
[401874907,1768392649528,-3000.0,0.000213,2]
[401874909,1768392649537,-3000.0,0.0002131,2]
[401874911,1768392649546,-3000.0,0.0002132,2]
[401874913,1768392649555,-3000.0,0.0002133,2]
[401874915,1768392649564,-3000.0,0.0002134,2]
[401874917,1768392649573,-3000.0,0.0002135,2]
[401874919,1768392649582,-3000.0,0.0002136,2]
[401874921,1768392649592,-7500.0,0.0002137,2]
[401874923,1768392649601,-550.0,0.0002137,2]
[401874925,1768392649610,-3000.0,0.0002137,2]
[401874927,1768392649619,-3000.0,0.0002138,2]
[401874929,1768392649628,-3000.0,0.0002139,2]
[401874931,1768392649637,-398.3080868,0.00021395,79]
[401874933,1768392649646,-3000.0,0.000214,2]
[401874935,1768392649655,-3000.0,0.0002141,2]
[401874937,1768392649664,-3000.0,0.0002142,2]
[401874939,1768392649673,-4716.661967,0.0002143,2]
[401874941,1768392649682,-574.12855637,0.00021666,2]
[401874942,1768392649691,-209.40437684,0.00021666,2]
[401874944,1768392649700,-2773.56790519,0.00021666,2]
[401874946,1768392649709,-1414.20532334,0.00021702,2]
[401874948,1768392649718,-1145.51309932,0.00021882,16]
[401874951,1768392649727,-5432.92,0.000219,2]
[401874953,1768392649737,-167.77,0.000219,2]
[401874955,1768392649747,-1200.0,0.00021918,2]
[401874957,1768392649757,-8000.0,0.00021918,2]
[401874959,1768392649767,-650.0,0.00021918,2]
[401874961,1768392649776,-263.37981658,0.00021945,2]
[401874963,1768392649786,-2000.0,0.0002199,7]
[401874965,1768392649795,-398.3080868,0.00021994,86]
[401874967,1768392649804,-2222.24,0.00022,7]
[401874968,1768392649813,-263.37981658,0.00022209,17]
[401874970,1768392649822,-595.37131296,0.00022214,2]
[401874972,1768392649831,-217.15233878,0.00022214,2]
[401874974,1768392649840,-2876.18991768,0.00022214,2]
[401874977,1768392649850,-374.32,0.000223,7]
[401874979,1768392649859,-377.31,0.000223,7]
[401874981,1768392649868,-300.0,0.00022466,2]
[401874983,1768392649879,-2364.52541442,0.00022466,2]
[401874985,1768392649888,-750.0,0.00022466,2]
[401874987,1768392649897,-263.37981658,0.00022473,32]
[401874989,1768392649907,-40340.44,0.000225,2]
[401874991,1768392649916,-398.3080868,0.00022594,94]
[401874993,1768392649925,-6198.0,0.00022648,2]
[401874995,1768392649935,-1077.0,0.00022693,2]